[Event "ESP-chT Div I 2018"]
[Site "Linares"]
[Date "2018.08.09"]
[Round "4"]
[White "Ortega Hermida, Daniel"]
[Black "Granero Roca, Antonio"]
[Result "1-0"]
[ECO "C78"]
[WhiteElo "2334"]
[BlackElo "2383"]
[Annotator "NA"]
[PlyCount "75"]
[EventDate "2018.08.06"]
[EventType "team-tourn"]
[EventCountry "ESP"]
[SourceTitle "playchess.com"]
[Source "ChessBase"]
[SourceQuality "1"]
[TimeControl "40/5400+30:1800+30"]

1. e4 {[%emt 0:00:00]} e5 {[%emt 0:00:00]} 2. Nf3 {[%emt 0:00:00]} Nc6 {[%emt 0:00:10]} 3. Bb5 {[%emt 0:00:08]} a6 {[%emt 0:00:22]} 4. Ba4 {[%emt 0:00:28]} Nf6 {[%emt 0:00:35]} 5. O-O {[%emt 0:00:36]} b5 {[%emt 0:01:19]} 6. Bb3 {[%emt 0:00:07]} Be7 {[%emt 0:00:13]} 7. d3 {[%emt 0:00:58]} d6 {[%emt 0:01:01]} 8. a3 {[%emt 0:01:26]} O-O {[%emt 0:02:59]} 9. Nc3 {[%emt 0:01:51]} Bg4 {[%emt 0:04:21]} 10. Be3 {[%emt 0:01:06]} Qd7 {[%emt 0:02:20]} 11. Nd5 {[%emt 0:01:50]} Nd8 {[%emt 0:05:22]} 12. h3 {[%emt 0:08:40]} Nxd5 {[%emt 0:08:27]} 13. Bxd5 {[%emt 0:09:54]} c6 {[%emt 0:00:08]} 14. Bb3 {[%emt 0:09:35]} Be6 {[%emt 0:06:01]} 15. d4 {[%emt 0:03:12]} Bxb3 {[%emt 0:01:35]} 16. cxb3 {[%emt 0:00:06]} f5 {[%emt 0:05:10]} 17. dxe5 {[%emt 0:05:55]} fxe4 {[%emt 0:01:28]} 18. Nd2 {[%emt 0:03:43]} d5 {[%emt 0:02:26]} 19. Nxe4 {[%emt 0:00:19]} Ne6 {[%emt 0:00:07]} 20. f4 {[%emt 0:07:58]} Qc7 {[%emt 0:03:15]} 21. Qg4 {[%emt 0:06:29]} Nxf4 {[%emt 0:07:37]} 22. Rxf4 {[%emt 0:05:59]} Qxe5 {[%emt 0:04:26]} 23. Re1 {[%emt 0:01:31]} dxe4 {[%emt 0:00:24]} 24. Rxe4 {[%emt 0:00:08]} Qd6 {[%emt 0:00:18]} 25. Re6 {[%emt 0:11:21]} Qd7 {[%emt 0:01:14]} 26. Bd4 {[%emt 0:02:12]} Rf7 {[%emt 0:03:13]} 27. Bxg7 {[%emt 0:04:45]} Rxg7 {[%emt 0:14:13]} 28. Qxg7+ {[%emt 0:00:09]} Kxg7 {[%emt 0:00:06]} 29. Rxe7+ {[%emt 0:00:04]} Qxe7 {[%emt 0:00:03]} 30. Rxe7+ {[%emt 0:00:06]} Kg6 {[%emt 0:01:30]} 31. Rc7 {[%emt 0:00:47]} h6 {[%emt 0:00:44]} 32. Rxc6+ {[%emt 0:00:11]} Kg5 {[%emt 0:00:08]} 33. Kh2 {[%emt 0:01:03]} Ra7 {[%emt 0:00:04]} 34. b4 {[%emt 0:00:38]} Ra8 {[%emt 0:00:04]} 35. Kg3 {[%emt 0:00:38]} h5 {[%emt 0:00:17]} 36. Rc5+ {[%emt 0:00:35]} Kg6 {[%emt 0:00:21]} 37. Kh4 {[%emt 0:01:04]} Re8 {[%emt 0:00:19]} 38. Rc6+ {[%emt 0:01:38]} 1-0

[Event "ESP-chT Div I 2018"]
[Site "Linares"]
[Date "2018.08.09"]
[Round "4"]
[White "Cano Sanchez, Josue"]
[Black "Gutierrez Olivares, Daniel"]
[Result "1-0"]
[ECO "A41"]
[WhiteElo "2312"]
[BlackElo "2297"]
[Annotator "NA"]
[PlyCount "147"]
[EventDate "2018.08.06"]
[EventType "team-tourn"]
[EventCountry "ESP"]
[SourceTitle "playchess.com"]
[Source "ChessBase"]
[SourceQuality "1"]
[TimeControl "40/5400+30:1800+30"]

1. d4 {[%emt 0:00:00]} d6 {[%emt 0:00:00]} 2. Bg5 {[%emt 0:00:35]} h6 {[%emt 0:02:28]} 3. Bh4 {[%emt 0:00:11]} g6 {[%emt 0:01:03]} 4. e4 {[%emt 0:02:14]} Bg7 {[%emt 0:02:38]} 5. c3 {[%emt 0:00:11]} a6 {[%emt 0:02:11]} 6. a4 {[%emt 0:04:30]} b6 {[%emt 0:01:51]} 7. Nd2 {[%emt 0:08:20]} c5 {[%emt 0:04:25]} 8. dxc5 bxc5 {[%emt 0:01:10]} 9. Ngf3 {[%emt 0:15:32]} Nc6 {[%emt 0:08:12]} 10. Nc4 {[%emt 0:05:54]} Qc7 {[%emt 0:02:21]} 11. Bg3 {[%emt 0:00:16]} Be6 {[%emt 0:04:23]} 12. Bd3 {[%emt 0:01:36]} Nf6 {[%emt 0:13:52]} 13. e5 {[%emt 0:00:46]} dxe5 {[%emt 0:00:47]} 14. Nfxe5 {[%emt 0:00:27]} Nxe5 {[%emt 0:03:47]} 15. Bxe5 {[%emt 0:00:35]} Qb7 {[%emt 0:01:17]} 16. O-O {[%emt 0:00:15]} O-O {[%emt 0:04:01]} 17. Qe2 {[%emt 0:00:09]} Bd5 {[%emt 0:04:32]} 18. Ne3 {[%emt 0:03:59]} Be4 {[%emt 0:02:07]} 19. Bxf6 {[%emt 0:20:52]} Bxd3 {[%emt 0:01:18]} 20. Qxd3 {[%emt 0:00:14]} exf6 {[%emt 0:00:16]} 21. Rfd1 {[%emt 0:12:11]} f5 {[%emt 0:01:40]} 22. Nc4 {[%emt 0:00:44]} Bf6 {[%emt 0:07:01]} 23. Qd5 {[%emt 0:00:44]} Qb3 {[%emt 0:04:09]} 24. Ra3 {[%emt 0:02:23]} Qc2 {[%emt 0:01:15]} 25. Qd3 {[%emt 0:00:09]} Qxd3 {[%emt 0:01:09]} 26. Rxd3 {[%emt 0:00:09]} Rfe8 {[%emt 0:00:34]} 27. Re3 {[%emt 0:10:07]} Bg5 {[%emt 0:01:32]} 28. Rxe8+ {[%emt 0:00:15]} Rxe8 {[%emt 0:00:02]} 29. Kf1 {[%emt 0:00:47]} Re4 {[%emt 0:00:52]} 30. Nd6 {[%emt 0:01:31]} Re6 {[%emt 0:01:50]} 31. Nc4 {[%emt 0:00:49]} Re4 {[%emt 0:03:26]} 32. Nd6 {[%emt 0:01:18]} Re7 {[%emt 0:02:54]} 33. Ra1 {[%emt 0:02:14]} Bf4 {[%emt 0:00:46]} 34. Nc4 {[%emt 0:00:07]} Re4 {[%emt 0:00:28]} 35. b3 {[%emt 0:00:15]} Bxh2 {[%emt 0:04:05]} 36. g3 {[%emt 0:00:46]} f4 {[%emt 0:00:18]} 37. Nd2 {[%emt 0:00:14]} Re6 {[%emt 0:00:44]} 38. g4 {[%emt 0:00:31]} f3 {[%emt 0:00:51]} 39. Nxf3 {[%emt 0:00:08]} Bf4 {[%emt 0:00:12]} 40. Rd1 {[%emt 0:00:08]} Rb6 {[%emt 0:03:08]} 41. Rb1 {[%emt 0:30:44]} Kg7 {[%emt 0:30:59]} 42. Ke2 {[%emt 0:00:06]} Re6+ {[%emt 0:01:47]} 43. Kd3 {[%emt 0:00:08]} Bd6 {[%emt 0:00:40]} 44. b4 {[%emt 0:00:39]} cxb4 {[%emt 0:00:34]} 45. cxb4 {[%emt 0:00:08]} Rf6 {[%emt 0:00:06]} 46. Nd2 {[%emt 0:01:10]} Rf4 {[%emt 0:02:31]} 47. Ne4 {[%emt 0:01:14]} Bb8 {[%emt 0:00:51]} 48. b5 {[%emt 0:00:11]} axb5 {[%emt 0:00:30]} 49. Rxb5 {[%emt 0:00:30]} Ba7 {[%emt 0:00:07]} 50. a5 {[%emt 0:02:25]} Bxf2 {[%emt 0:00:28]} 51. a6 {[%emt 0:00:26]} Bg1 {[%emt 0:00:47]} 52. g5 {[%emt 0:01:41]} hxg5 {[%emt 0:01:39]} 53. Rxg5 {[%emt 0:01:02]} Ba7 {[%emt 0:00:28]} 54. Rd5 {[%emt 0:01:04]} Rf3+ {[%emt 0:01:40]} 55. Kc4 {[%emt 0:00:26]} Re3 {[%emt 0:01:15]} 56. Nd6 {[%emt 0:00:24]} Re6 {[%emt 0:01:11]} 57. Kb5 {[%emt 0:00:29]} f5 {[%emt 0:01:23]} 58. Nxf5+ {[%emt 0:01:36]} gxf5 {[%emt 0:01:05]} 59. Rd7+ {[%emt 0:00:20]} Kg6 {[%emt 0:00:28]} 60. Rxa7 {[%emt 0:00:06]} f4 {[%emt 0:00:26]} 61. Ra8 {[%emt 0:00:13]} Re1 {[%emt 0:00:27]} 62. Rg8+ {[%emt 0:00:13]} Kf5 {[%emt 0:00:10]} 63. a7 {[%emt 0:00:05]} Ra1 {[%emt 0:00:58]} 64. a8=Q {[%emt 0:00:16]} Rxa8 {[%emt 0:00:04]} 65. Rxa8 {[%emt 0:00:07]} Ke4 {[%emt 0:00:25]} 66. Kc4 {[%emt 0:00:08]} Ke3 {[%emt 0:00:40]} 67. Re8+ {[%emt 0:00:41]} Kd2 {[%emt 0:00:25]} 68. Rf8 {[%emt 0:00:12]} Ke3 {[%emt 0:00:04]} 69. Kc3 {[%emt 0:00:09]} f3 {[%emt 0:00:27]} 70. Re8+ {[%emt 0:00:14]} Kf2 {[%emt 0:00:04]} 71. Kd2 {[%emt 0:00:09]} Kg2 {[%emt 0:00:44]} 72. Ke3 {[%emt 0:00:52]} f2 {[%emt 0:00:08]} 73. Rg8+ {[%emt 0:00:13]} Kf1 {[%emt 0:01:32]} 74. Rf8 1-0

[Event "ESP-chT Div I 2018"]
[Site "Linares"]
[Date "2018.08.09"]
[Round "4"]
[White "Aranaz Murillo, Amalia"]
[Black "Garcia Perez, Javier"]
[Result "1-0"]
[ECO "A05"]
[WhiteElo "2227"]
[BlackElo "2090"]
[Annotator "NA"]
[PlyCount "63"]
[EventDate "2018.08.06"]
[EventType "team-tourn"]
[EventCountry "ESP"]
[SourceTitle "playchess.com"]
[Source "ChessBase"]
[SourceQuality "1"]
[TimeControl "40/5400+30:1800+30"]

1. Nf3 {[%emt 0:00:00]} Nf6 {[%emt 0:00:00]} 2. c4 {[%emt 0:00:00]} c5 {[%emt 0:00:12]} 3. g3 {[%emt 0:00:01]} Nc6 {[%emt 0:00:17]} 4. Bg2 {[%emt 0:00:07]} d6 {[%emt 0:00:16]} 5. d4 {[%emt 0:00:50]} cxd4 {[%emt 0:00:27]} 6. Nxd4 {[%emt 0:00:06]} Bd7 {[%emt 0:00:10]} 7. O-O {[%emt 0:06:20]} g6 {[%emt 0:00:21]} 8. Nc3 {[%emt 0:00:19]} Bg7 {[%emt 0:00:13]} 9. Nb3 {[%emt 0:07:59]} b6 {[%emt 0:01:43]} 10. Bf4 {[%emt 0:04:18]} Rc8 {[%emt 0:02:14]} 11. Rc1 {[%emt 0:03:15]} Nh5 {[%emt 0:03:43]} 12. Nd2 {[%emt 0:05:10]} Nxf4 {[%emt 0:02:48]} 13. gxf4 {[%emt 0:00:05]} O-O {[%emt 0:00:05]} 14. b3 {[%emt 0:04:50]} Bg4 {[%emt 0:17:40]} 15. Nf3 {[%emt 0:04:37]} Qd7 {[%emt 0:00:16]} 16. e3 {[%emt 0:04:26]} Qf5 {[%emt 0:01:40]} 17. Ne2 {[%emt 0:05:22]} e5 {[%emt 0:14:23]} 18. Ng3 {[%emt 0:10:17]} Qe6 {[%emt 0:09:56]} 19. fxe5 {[%emt 0:03:46]} dxe5 {[%emt 0:01:34]} 20. Ng5 {[%emt 0:00:51]} Qd7 {[%emt 0:00:43]} 21. Qxd7 {[%emt 0:01:32]} Bxd7 {[%emt 0:00:05]} 22. Rfd1 {[%emt 0:00:06]} Rfd8 {[%emt 0:00:49]} 23. N3e4 {[%emt 0:06:05]} h6 {[%emt 0:02:59]} 24. Nd6 {[%emt 0:04:01]} Bg4 {[%emt 0:02:25]} 25. Ngxf7 {[%emt 0:01:55]} Bxd1 {[%emt 0:01:03]} 26. Nxd8 {[%emt 0:00:57]} Rxd8 {[%emt 0:00:29]} 27. Rxd1 {[%emt 0:00:16]} Ne7 {[%emt 0:01:03]} 28. Bd5+ {[%emt 0:00:24]} Kf8 {[%emt 0:01:20]} 29. Nb5 {[%emt 0:02:40]} Nc6 {[%emt 0:11:11]} 30. Nc7 {[%emt 0:01:44]} Rc8 {[%emt 0:05:31]} 31. Ne6+ {[%emt 0:00:11]} Kg8 {[%emt 0:00:03]} 32. Nd8+ {[%emt 0:00:16]} 1-0

[Event "ESP-chT Div I 2018"]
[Site "Linares"]
[Date "2018.08.09"]
[Round "4"]
[White "Rivas Garcia, Victor"]
[Black "Badillo Ramos, Steve"]
[Result "1/2-1/2"]
[ECO "B22"]
[WhiteElo "2217"]
[BlackElo "1901"]
[Annotator "NA"]
[PlyCount "102"]
[EventDate "2018.08.06"]
[EventType "team-tourn"]
[EventCountry "ESP"]
[SourceTitle "playchess.com"]
[Source "ChessBase"]
[SourceQuality "1"]
[TimeControl "40/5400+30:1800+30"]

1. e4 {[%emt 0:00:00]} c5 {[%emt 0:00:00]} 2. c3 {[%emt 0:00:00]} Nf6 {[%emt 0:00:00]} 3. e5 {[%emt 0:00:00]} Nd5 {[%emt 0:00:19]} 4. Nf3 {[%emt 0:00:23]} e6 {[%emt 0:00:39]} 5. d4 {[%emt 0:00:48]} cxd4 {[%emt 0:01:02]} 6. cxd4 {[%emt 0:00:03]} d6 {[%emt 0:00:12]} 7. Bc4 {[%emt 0:01:00]} Be7 {[%emt 0:00:50]} 8. O-O {[%emt 0:00:21]} O-O {[%emt 0:00:32]} 9. Qe2 {[%emt 0:05:38]} Nc6 {[%emt 0:02:59]} 10. Qe4 {[%emt 0:01:48]} dxe5 {[%emt 0:00:39]} 11. dxe5 {[%emt 0:00:38]} Qc7 {[%emt 0:07:55]} 12. Bd3 {[%emt 0:03:39]} f5 {[%emt 0:00:49]} 13. exf6 {[%emt 0:01:05]} Nxf6 {[%emt 0:00:17]} 14. Qe2 {[%emt 0:03:52]} e5 {[%emt 0:02:04]} 15. h3 {[%emt 0:01:32]} Be6 {[%emt 0:02:40]} 16. Nc3 {[%emt 0:03:36]} a6 {[%emt 0:04:06]} 17. Be3 {[%emt 0:05:41]} Nd5 {[%emt 0:01:12]} 18. Bc4 {[%emt 0:12:47]} Rad8 {[%emt 0:07:57]} 19. Rfd1 {[%emt 0:08:59]} Qa5 {[%emt 0:01:59]} 20. Nxd5 {[%emt 0:16:22]} Bxd5 {[%emt 0:00:12]} 21. Bxd5+ {[%emt 0:00:32]} Rxd5 {[%emt 0:00:36]} 22. Qc4 {[%emt 0:00:11]} Rfd8 {[%emt 0:00:19]} 23. Bb6 {[%emt 0:04:15]} Qb5 {[%emt 0:00:57]} 24. Qxb5 {[%emt 0:00:10]} Rxd1+ {[%emt 0:00:12]} 25. Qf1 {[%emt 0:00:05]} Rxf1+ {[%emt 0:00:07]} 26. Kxf1 {[%emt 0:00:09]} Rd5 {[%emt 0:00:29]} 27. Be3 {[%emt 0:01:07]} Bf6 {[%emt 0:02:33]} 28. Nd2 {[%emt 0:01:09]} Nb4 {[%emt 0:02:04]} 29. Ne4 {[%emt 0:00:44]} Nc2 {[%emt 0:00:29]} 30. Rc1 {[%emt 0:00:14]} Nxe3+ {[%emt 0:00:30]} 31. fxe3 {[%emt 0:00:06]} Rd7 {[%emt 0:05:22]} 32. Ke2 {[%emt 0:00:45]} Kf7 {[%emt 0:00:22]} 33. Rc8 {[%emt 0:00:32]} Be7 {[%emt 0:01:28]} 34. a3 {[%emt 0:01:27]} h6 {[%emt 0:02:22]} 35. Nc3 {[%emt 0:01:15]} b5 {[%emt 0:05:20]} 36. Rc6 {[%emt 0:02:57]} Rd6 {[%emt 0:00:50]} 37. Rc7 {[%emt 0:01:26]} Ke6 {[%emt 0:05:13]} 38. e4 {[%emt 0:04:15]} Rd7 {[%emt 0:01:25]} 39. Rc8 {[%emt 0:01:10]} Rd8 {[%emt 0:03:16]} 40. Rxd8 {[%emt 0:01:15]} Bxd8 {[%emt 0:00:02]} 41. Nd5 {[%emt 0:30:06]} a5 {[%emt 0:32:24]} 42. Nc3 {[%emt 0:00:46]} Kd6 {[%emt 0:03:33]} 43. Nxb5+ {[%emt 0:00:54]} Kc5 {[%emt 0:00:07]} 44. Nc3 {[%emt 0:00:46]} Kc4 {[%emt 0:00:08]} 45. Kd2 {[%emt 0:01:10]} Kb3 {[%emt 0:00:12]} 46. Kc1 {[%emt 0:00:09]} Bb6 {[%emt 0:00:39]} 47. Ne2 {[%emt 0:01:17]} g6 {[%emt 0:01:55]} 48. Kb1 {[%emt 0:01:47]} Be3 {[%emt 0:00:16]} 49. g4 {[%emt 0:00:43]} h5 {[%emt 0:03:42]} 50. gxh5 {[%emt 0:00:38]} gxh5 {[%emt 0:00:06]} 51. a4 {[%emt 0:01:05]} Kxa4 {[%emt 0:01:54]} 1/2-1/2

[Event "ESP-chT Div I 2018"]
[Site "Linares"]
[Date "2018.08.09"]
[Round "4"]
[White "Gonzalez Merino, Alberto"]
[Black "Ortega Ruiz, Jose Miguel"]
[Result "0-1"]
[ECO "E00"]
[WhiteElo "2199"]
[BlackElo "2280"]
[Annotator "NA"]
[PlyCount "52"]
[EventDate "2018.08.06"]
[EventType "team-tourn"]
[EventCountry "ESP"]
[SourceTitle "playchess.com"]
[Source "ChessBase"]
[SourceQuality "1"]
[TimeControl "40/5400+30:1800+30"]

1. d4 {[%emt 0:00:00]} Nf6 {[%emt 0:00:00]} 2. c4 {[%emt 0:00:00]} e6 {[%emt 0:00:00]} 3. Nc3 {[%emt 0:00:16]} c5 {[%emt 0:00:05]} 4. Nf3 {[%emt 0:01:13]} cxd4 {[%emt 0:03:19]} 5. Nxd4 {[%emt 0:00:23]} Bb4 {[%emt 0:00:06]} 6. Bd2 {[%emt 0:03:07]} Nc6 {[%emt 0:01:24]} 7. e3 {[%emt 0:05:14]} O-O {[%emt 0:01:09]} 8. Qb3 {[%emt 0:10:48]} Bc5 {[%emt 0:02:01]} 9. Nf3 {[%emt 0:00:34]} d5 {[%emt 0:03:03]} 10. cxd5 {[%emt 0:02:06]} exd5 {[%emt 0:00:05]} 11. Na4 {[%emt 0:00:51]} Bd6 {[%emt 0:30:11]} 12. Bb5 {[%emt 0:27:41]} Ne4 {[%emt 0:11:58]} 13. Bxc6 {[%emt 0:17:42]} bxc6 {[%emt 0:00:19]} 14. Rc1 {[%emt 0:01:36]} Ba6 {[%emt 0:05:21]} 15. Rxc6 {[%emt 0:03:59]} Bc4 {[%emt 0:00:05]} 16. Rxc4 {[%emt 0:05:41]} dxc4 {[%emt 0:00:04]} 17. Qxc4 {[%emt 0:01:18]} Nxd2 {[%emt 0:00:05]} 18. Kxd2 {[%emt 0:00:15]} Rc8 {[%emt 0:01:08]} 19. Qb3 {[%emt 0:06:26]} Qa5+ {[%emt 0:02:19]} 20. Nc3 {[%emt 0:00:01]} Rfd8 {[%emt 0:00:49]} 21. Ke2 {[%emt 0:01:11]} Bb4 {[%emt 0:01:06]} 22. Rc1 {[%emt 0:01:53]} Qa6+ {[%emt 0:00:53]} 23. Ke1 {[%emt 0:00:09]} Ba5 {[%emt 0:01:12]} 24. Nd4 {[%emt 0:01:55]} Rxd4 {[%emt 0:00:48]} 25. exd4 {[%emt 0:00:10]} Re8+ {[%emt 0:00:06]} 26. Kd1 {[%emt 0:00:10]} Qd3# {[%emt 0:00:06]} 0-1

[Event "ESP-chT Div I 2018"]
[Site "Linares"]
[Date "2018.08.09"]
[Round "4"]
[White "Vega Gutierrez, Belinda"]
[Black "Garcia Molina, Jose"]
[Result "1/2-1/2"]
[ECO "B20"]
[WhiteElo "2165"]
[BlackElo "1969"]
[Annotator "NA"]
[PlyCount "146"]
[EventDate "2018.08.06"]
[EventType "team-tourn"]
[EventCountry "ESP"]
[SourceTitle "playchess.com"]
[Source "ChessBase"]
[SourceQuality "1"]
[TimeControl "40/5400+30:1800+30"]

1. e4 {[%emt 0:00:00]} c5 {[%emt 0:00:00]} 2. Ne2 {[%emt 0:00:00]} d6 {[%emt 0:00:00]} 3. g3 {[%emt 0:00:07]} g6 {[%emt 0:01:58]} 4. Bg2 {[%emt 0:00:12]} Bg7 {[%emt 0:02:53]} 5. c3 {[%emt 0:00:19]} e5 {[%emt 0:02:20]} 6. d4 {[%emt 0:01:03]} Qc7 {[%emt 0:00:44]} 7. O-O {[%emt 0:02:49]} Ne7 {[%emt 0:03:07]} 8. Na3 {[%emt 0:04:42]} O-O {[%emt 0:11:16]} 9. Bg5 {[%emt 0:15:33]} a6 {[%emt 0:07:59]} 10. Qd2 {[%emt 0:10:15]} Nbc6 {[%emt 0:14:13]} 11. d5 {[%emt 0:05:24]} Na7 {[%emt 0:01:37]} 12. h3 {[%emt 0:13:53]} f5 {[%emt 0:08:12]} 13. exf5 {[%emt 0:10:13]} Nxf5 {[%emt 0:04:23]} 14. g4 {[%emt 0:00:35]} h6 {[%emt 0:07:20]} 15. gxf5 {[%emt 0:02:11]} hxg5 {[%emt 0:00:47]} 16. fxg6 {[%emt 0:00:11]} Qe7 {[%emt 0:08:08]} 17. Ng3 {[%emt 0:10:58]} Rf4 {[%emt 0:04:27]} 18. Rae1 {[%emt 0:02:58]} Bd7 {[%emt 0:10:45]} 19. Re4 {[%emt 0:11:07]} Raf8 {[%emt 0:00:42]} 20. Qe2 {[%emt 0:01:05]} Bh6 {[%emt 0:06:04]} 21. Nc2 {[%emt 0:03:15]} Qg7 {[%emt 0:02:22]} 22. Qh5 {[%emt 0:02:18]} Be8 {[%emt 0:00:36]} 23. Rxf4 {[%emt 0:01:27]} exf4 {[%emt 0:00:52]} 24. Ne4 {[%emt 0:00:27]} Bxg6 {[%emt 0:00:34]} 25. Qf3 {[%emt 0:00:45]} Nc8 {[%emt 0:00:29]} 26. Re1 {[%emt 0:00:38]} Bf5 {[%emt 0:00:14]} 27. Qe2 {[%emt 0:00:34]} g4 {[%emt 0:00:37]} 28. hxg4 {[%emt 0:00:01]} Bxg4 {[%emt 0:00:01]} 29. f3 {[%emt 0:00:01]} Bf5 {[%emt 0:00:23]} 30. Kf2 {[%emt 0:00:30]} Kh8 {[%emt 0:00:55]} 31. Rh1 {[%emt 0:00:26]} Rg8 {[%emt 0:00:07]} 32. Ne1 {[%emt 0:00:07]} Qg6 {[%emt 0:00:29]} 33. Kf1 {[%emt 0:00:41]} Ne7 {[%emt 0:00:26]} 34. c4 {[%emt 0:00:34]} Kg7 {[%emt 0:00:26]} 35. Qf2 {[%emt 0:00:23]} Kf8 {[%emt 0:00:25]} 36. Qh4 {[%emt 0:00:31]} Bg5 {[%emt 0:00:38]} 37. Nxg5 {[%emt 0:01:12]} Qxg5 {[%emt 0:00:01]} 38. Qh6+ {[%emt 0:00:35]} Ke8 {[%emt 0:00:24]} 39. Qxg5 {[%emt 0:00:44]} Rxg5 {[%emt 0:00:01]} 40. Rh8+ {[%emt 0:00:15]} Rg8 {[%emt 0:00:36]} 41. Rh5 {[%emt 0:30:31]} b5 {[%emt 0:31:00]} 42. cxb5 {[%emt 0:00:33]} axb5 {[%emt 0:00:02]} 43. Kf2 {[%emt 0:00:07]} Bg6 {[%emt 0:00:33]} 44. Rh4 {[%emt 0:00:33]} Nxd5 {[%emt 0:00:08]} 45. Bf1 {[%emt 0:00:10]} c4 {[%emt 0:00:42]} 46. a4 {[%emt 0:00:25]} Rf8 {[%emt 0:00:56]} 47. axb5 {[%emt 0:00:09]} Nb6 {[%emt 0:00:05]} 48. Ng2 {[%emt 0:00:28]} Rf5 {[%emt 0:00:59]} 49. Rxf4 {[%emt 0:01:14]} Rxb5 {[%emt 0:00:09]} 50. Bxc4 {[%emt 0:00:21]} Rxb2+ {[%emt 0:00:05]} 51. Kg3 {[%emt 0:00:10]} d5 {[%emt 0:00:20]} 52. Bf1 {[%emt 0:00:46]} Ke7 {[%emt 0:02:46]} 53. Rd4 {[%emt 0:00:51]} Kf6 {[%emt 0:00:29]} 54. Nf4 {[%emt 0:00:15]} Bf7 {[%emt 0:00:06]} 55. Rd1 {[%emt 0:00:31]} Rb3 {[%emt 0:01:02]} 56. Ba6 {[%emt 0:00:38]} Ke5 {[%emt 0:00:20]} 57. Nd3+ {[%emt 0:00:16]} Kd6 {[%emt 0:00:15]} 58. Nf4 {[%emt 0:00:17]} Rb4 {[%emt 0:00:25]} 59. Bf1 {[%emt 0:00:17]} Nc8 {[%emt 0:00:58]} 60. Bd3 {[%emt 0:00:53]} Ne7 {[%emt 0:00:34]} 61. Bh7 {[%emt 0:00:45]} Nc6 {[%emt 0:00:23]} 62. Be4 {[%emt 0:00:54]} d4 {[%emt 0:00:12]} 63. Bxc6 {[%emt 0:00:32]} Kxc6 {[%emt 0:00:02]} 64. Nd3 {[%emt 0:00:09]} Rb5 {[%emt 0:00:41]} 65. Kf4 {[%emt 0:00:38]} Bg8 {[%emt 0:00:52]} 66. Ke4 {[%emt 0:00:35]} Bd5+ {[%emt 0:00:42]} 67. Kxd4 {[%emt 0:00:16]} Bxf3 {[%emt 0:00:26]} 68. Ne5+ {[%emt 0:00:28]} Kd6 {[%emt 0:00:19]} 69. Nc4+ {[%emt 0:00:43]} Ke6 {[%emt 0:00:27]} 70. Re1+ {[%emt 0:00:08]} Kf6 {[%emt 0:00:17]} 71. Rf1 {[%emt 0:00:32]} Rf5 {[%emt 0:00:17]} 72. Nd6 {[%emt 0:00:19]} Rd5+ {[%emt 0:01:09]} 73. Ke3 {[%emt 0:00:10]} Ke5 1/2-1/2

[Event "ESP-chT Div I 2018"]
[Site "Linares"]
[Date "2018.08.09"]
[Round "4"]
[White "Prado Acebo, Ines"]
[Black "Cao Armillas, Jesus"]
[Result "1/2-1/2"]
[ECO "A43"]
[WhiteElo "2084"]
[BlackElo "2043"]
[Annotator "NA"]
[PlyCount "134"]
[EventDate "2018.08.06"]
[EventType "team-tourn"]
[EventCountry "ESP"]
[SourceTitle "playchess.com"]
[Source "ChessBase"]
[SourceQuality "1"]
[TimeControl "40/5400+30:1800+30"]

1. d4 {[%emt 0:00:00]} Nf6 {[%emt 0:00:00]} 2. c4 {[%emt 0:00:00]} c5 {[%emt 0:00:00]} 3. d5 {[%emt 0:00:06]} d6 {[%emt 0:00:00]} 4. Nc3 {[%emt 0:00:28]} g6 {[%emt 0:00:00]} 5. Nf3 {[%emt 0:00:43]} Bg7 {[%emt 0:00:00]} 6. h3 {[%emt 0:02:21]} O-O {[%emt 0:00:14]} 7. e4 {[%emt 0:04:08]} e6 {[%emt 0:00:11]} 8. Bg5 {[%emt 0:01:35]} h6 {[%emt 0:01:20]} 9. Be3 {[%emt 0:00:25]} Re8 {[%emt 0:00:31]} 10. Bd3 {[%emt 0:01:38]} Na6 {[%emt 0:01:53]} 11. Qd2 {[%emt 0:04:14]} Kh7 {[%emt 0:00:15]} 12. O-O {[%emt 0:00:43]} Nc7 {[%emt 0:00:41]} 13. e5 {[%emt 0:12:05]} dxe5 {[%emt 0:21:39]} 14. d6 {[%emt 0:00:32]} Ncd5 {[%emt 0:01:32]} 15. cxd5 {[%emt 0:00:41]} exd5 {[%emt 0:00:44]} 16. Bxc5 {[%emt 0:15:50]} e4 {[%emt 0:05:39]} 17. Be2 {[%emt 0:09:24]} exf3 {[%emt 0:02:24]} 18. Bxf3 {[%emt 0:00:06]} Ne4 {[%emt 0:08:48]} 19. Bxe4 {[%emt 0:14:18]} dxe4 {[%emt 0:00:35]} 20. Rfd1 {[%emt 0:05:31]} Bd7 {[%emt 0:09:53]} 21. Rac1 Re6 {[%emt 0:02:28]} 22. Nd5 {[%emt 0:03:43]} Rc8 {[%emt 0:11:11]} 23. Nc7 {[%emt 0:01:41]} Rf6 {[%emt 0:07:45]} 24. Bxa7 {[%emt 0:01:01]} Bf8 {[%emt 0:00:36]} 25. Bc5 {[%emt 0:02:26]} Bc6 {[%emt 0:01:08]} 26. d7 {[%emt 0:06:25]} Qxc7 {[%emt 0:12:53]} 27. dxc8=Q {[%emt 0:01:34]} Qxc8 {[%emt 0:00:08]} 28. Qd8 {[%emt 0:00:35]} Qxd8 {[%emt 0:00:11]} 29. Rxd8 {[%emt 0:00:06]} Bg7 {[%emt 0:00:53]} 30. Bd4 {[%emt 0:00:35]} Re6 {[%emt 0:00:05]} 31. Bxg7 {[%emt 0:00:23]} Kxg7 {[%emt 0:00:05]} 32. Rc3 {[%emt 0:01:03]} f5 {[%emt 0:00:07]} 33. b4 {[%emt 0:00:27]} Kf6 {[%emt 0:00:14]} 34. Rc5 {[%emt 0:02:03]} b6 {[%emt 0:00:40]} 35. Rc2 {[%emt 0:00:35]} f4 {[%emt 0:00:08]} 36. Kf1 {[%emt 0:02:39]} e3 {[%emt 0:00:32]} 37. fxe3 {[%emt 0:00:13]} fxe3 {[%emt 0:00:21]} 38. Ke1 {[%emt 0:00:07]} Ke5 {[%emt 0:00:45]} 39. Rc8 {[%emt 0:05:26]} Bb5 {[%emt 0:00:33]} 40. Rf8 {[%emt 0:01:14]} Kd4 {[%emt 0:03:20]} 41. Rc7 {[%emt 0:30:58]} Ke4 {[%emt 0:31:16]} 42. Rf3 {[%emt 0:01:24]} h5 {[%emt 0:01:53]} 43. Rc3 {[%emt 0:00:50]} Kd4 {[%emt 0:00:18]} 44. Rc1 {[%emt 0:00:02]} Kd3 {[%emt 0:01:28]} 45. Rf4 {[%emt 0:00:24]} Ba4 {[%emt 0:03:50]} 46. Rcc4 {[%emt 0:00:49]} Rd6 {[%emt 0:00:04]} 47. g4 {[%emt 0:00:55]} hxg4 {[%emt 0:00:06]} 48. hxg4 {[%emt 0:00:05]} Bb5 {[%emt 0:00:45]} 49. Rc7 {[%emt 0:00:20]} Bc6 {[%emt 0:00:33]} 50. g5 {[%emt 0:00:42]} Be4 {[%emt 0:02:16]} 51. Rff7 {[%emt 0:00:54]} Bf5 {[%emt 0:00:32]} 52. Rfe7 {[%emt 0:00:26]} Rd4 {[%emt 0:00:21]} 53. a3 {[%emt 0:00:21]} Rh4 {[%emt 0:00:24]} 54. Rh7 {[%emt 0:00:21]} Rg4 {[%emt 0:00:04]} 55. Rh1 {[%emt 0:00:53]} Rg2 {[%emt 0:00:07]} 56. Kd1 {[%emt 0:00:46]} Rd2+ {[%emt 0:01:04]} 57. Kc1 {[%emt 0:00:06]} Ra2 {[%emt 0:01:25]} 58. Kb1 {[%emt 0:00:21]} Rxa3 {[%emt 0:00:12]} 59. Kb2 {[%emt 0:00:30]} Ra8 {[%emt 0:00:31]} 60. Rd1+ {[%emt 0:01:06]} Ke2 {[%emt 0:00:14]} 61. Rcc1 {[%emt 0:00:07]} Bd3 {[%emt 0:00:46]} 62. Re1+ {[%emt 0:00:16]} Kf2 {[%emt 0:00:10]} 63. Kc3 {[%emt 0:00:08]} Bb5 {[%emt 0:00:47]} 64. Kd4 {[%emt 0:00:27]} Rd8+ {[%emt 0:00:39]} 65. Ke5 {[%emt 0:00:13]} e2 {[%emt 0:00:34]} 66. Kf6 {[%emt 0:01:29]} Rd6+ {[%emt 0:00:04]} 67. Ke5 {[%emt 0:00:06]} Rd2 {[%emt 0:00:12] Kd5} 1/2-1/2